fUSD/lending_fUSD_20241121
["ID","MTS","AMOUNT","RATE_DAILY","PERIOD"]
[342822241,1732153556123,-253.7,9.8e-05,2]
[342822242,1732153556144,-296.86573917,9.873e-05,2]
[342822243,1732153626101,-3017.292,9.8e-05,2]
[342822244,1732153626122,-300.0,9.899e-05,2]
[342822245,1732153626144,-571.58327216,9.9e-05,2]
[342822246,1732153638092,-1386.59878719,9.9e-05,2]
[342822262,1732153832127,-300.0,9.3e-05,3]
[342822263,1732153832136,-700.0,9.4e-05,3]
[342822264,1732153832145,-516.07,9.5e-05,3]
[342822265,1732153832156,-583.93,9.5e-05,3]
[342822266,1732153832165,-1500.0,9.6e-05,3]
[342822267,1732153832175,-1900.0,9.7e-05,3]
[342822268,1732153832184,-300.0,9.8e-05,3]
[342822269,1732153832193,-169.0,9.801e-05,2]
[342822270,1732153832203,-209.44026067,9.873e-05,2]
[342822271,1732153832212,-107707.62973933,9.9e-05,2]
[342822272,1732153832301,-766.71121484,9.9e-05,2]
[342822273,1732153832312,-473.65,9.9e-05,2]
[342822279,1732153838188,-263.743,9.8e-05,2]
[342822280,1732153838197,-334.86201061,9.9e-05,2]
[342822281,1732153838376,-540.2215854,9.9e-05,2]
[342822282,1732153838391,-1779.0,9.9e-05,2]
[342822283,1732153838559,-3017.3035435,9.9e-05,2]
[342822335,1732153840225,-595.4050001,9.9e-05,2]
[342822336,1732153840236,-449.36859999,9.9e-05,2]
[342822337,1732153840249,-8047.4,9.9e-05,2]
[342822611,1732153843126,-1685.08747765,9.9e-05,2]
[342822612,1732153843137,-5001.39664821,9.9e-05,2]
[342822613,1732153843148,-363.9162035,9.9e-05,2]
[342822614,1732153843160,-10606.32290093,9.9e-05,2]
[342822615,1732153843171,-812.75174258,9.9e-05,2]
[342822616,1732153843183,-3504.85914241,9.9e-05,2]
[342822617,1732153843194,-7079.08220966,9.9e-05,2]
[342822618,1732153843204,-29908.32502162,9.9e-05,2]
[342822619,1732153843215,-10087.70722129,9.9e-05,2]
[342822620,1732153843226,-245542.11007903,9.9e-05,2]
[342822621,1732153843236,-41291.8476,9.9e-05,2]
[342822622,1732153843245,-300.0,9.9e-05,3]
[342822623,1732153843254,-347.57215455,9.99e-05,2]
[342822624,1732153843263,-1395.00328527,9.999e-05,3]
[342822625,1732153843272,-201.98178153,0.0001,2]
[342822626,1732153843281,-2078581.45559948,0.0001,2]
[342822627,1732153843320,-1368.74846344,0.0001,2]
[342822628,1732153843331,-606.06,0.0001,2]
[342822629,1732153843342,-1930.6084744,0.0001,2]
[342822630,1732153843352,-8206.79,0.0001,2]
[342822631,1732153843363,-3501841.92905282,0.0001,2]
[342822638,1732153846624,-1466.800001,0.0001,2]
[342822639,1732153846635,-4821.5999997,0.0001,2]
[342822640,1732153897210,850.0,0.00025,100]
[342822641,1732153898767,850.0,0.00025,100]
[342822642,1732153900815,850.0,0.00025,100]
[342822643,1732153901300,850.0,0.00025,100]
[342822644,1732153903610,850.0,0.00025,100]
[342822645,1732153918106,850.0,0.00025,100]
[342822646,1732153929597,1699.99999999,0.00025,100]
[342822647,1732153961661,1700.0,0.00025,100]
[342822649,1732154013707,448.59746942,0.00025,100]
[342822650,1732154543311,400.0,8.219e-05,2]
[342822651,1732154543335,1.44,8.219e-05,2]
[342822654,1732154748206,-254.95,9.426e-05,2]
[342822655,1732154748229,-27.23304759,9.5e-05,2]
[342822656,1732154749096,-209.04752418,9.5e-05,2]
[342822657,1732154749118,-166.78,9.505e-05,2]
[342822658,1732154749140,-300.0,9.789e-05,2]
[342822659,1732154749163,-194.42640917,9.79e-05,2]
[342822660,1732154752421,-36757.11765626,9.79e-05,2]
[342822661,1732154752445,-150.0,9.799e-05,2]
[342822662,1732154752472,-34290.3414,9.8e-05,2]
[342822663,1732154752494,-2457.7877,9.8e-05,2]
[342822664,1732154752516,-3523.6017,9.8e-05,2]
[342822665,1732154752538,-1216.3044,9.8e-05,2]
[342822666,1732154752561,-11517.5427,9.8e-05,2]
[342822667,1732154752583,-1000.0,9.8e-05,2]
[342822668,1732154752607,-2204.069,9.8e-05,2]
[342822669,1732154752630,-182.712,9.8e-05,2]
[342822670,1732154752653,-1207.0864,9.8e-05,2]
[342822671,1732154752676,-1932.5,9.83e-05,2]
[342822672,1732154752699,-1000.0,9.855e-05,2]
[342822673,1732154752725,-502.8037755,9.873e-05,2]
[342822674,1732154752748,-500.0,9.873e-05,2]
[342822675,1732154752771,-250.0,9.89e-05,2]
[342822676,1732154752793,-18360.6471,9.9e-05,2]
[342822677,1732154752816,-759.9916,9.9e-05,2]
[342822678,1732154752839,-60589.9743,9.9e-05,2]
[342822679,1732154752861,-34982.0751,9.9e-05,2]
[342822680,1732154752884,-501.28870331,9.973e-05,2]
[342822681,1732154752910,-1282.0781004,0.0001,2]
[342822682,1732154752943,-784832.07836453,0.0001,2]
[342822683,1732154770710,-300.0,9.999e-05,2]
[342822684,1732154770734,-150.0,9.999e-05,2]
[342822685,1732154770767,-999550.0,0.0001,2]
[342822686,1732154778913,-1000000.0,0.0001,2]
[342822687,1732154788212,-1000000.0,0.0001,2]
[342822688,1732154832101,-1552.5144,9.7e-05,2]
[342822689,1732154832129,-2163.03671317,0.0001,2]
[342822690,1732154844104,-491.2125,9.69e-05,2]
[342822691,1732154844132,-396.10089575,0.0001,2]
[342822692,1732154848794,-900.0,9.7e-05,3]
[342822693,1732154848821,-463.61235457,0.0001,2]
[342822694,1732154894020,549.87,0.00022,30]
[342822695,1732154930193,549.87,0.00022,30]
[342822696,1732155032305,-1102.89243099,9.8e-05,3]
[342822697,1732155032316,-797.10756901,9.8e-05,3]
[342822698,1732155032325,-1583.09243139,9.8e-05,2]
[342822699,1732155032336,-1378.70684906,9.8e-05,2]
[342822700,1732155032348,-19.53691955,9.8e-05,2]
[342822701,1732155032357,-2564.16207976,9.9e-05,3]
[342822704,1732155032515,-335.83792024,9.9e-05,3]
[342822705,1732155032525,-1032.57473922,0.0001,2]
[342822706,1732155032536,-2176.37284977,0.0001,2]
[342822707,1732155032547,-1297.00343464,0.0001,2]
[342822708,1732155032559,-1947.2218158,0.0001,2]
[342822709,1732155032570,-2616.58799259,0.0001,2]
[342822710,1732155032580,-1498.4689072,0.0001,2]
[342822711,1732155032593,-5622.03985906,0.0001,2]
[342822712,1732155032604,-7933.5579185,0.0001,2]
[342822713,1732155035741,-1500.53258385,0.0001,2]
[342822714,1732155035752,-1191027.48644535,0.0001,2]
[342822715,1732155035763,-2574.86602488,0.0001,2]
[342822716,1732155035773,-188888.0,0.0001,2]
[342822717,1732155035785,-1301.36397506,0.0001,2]
[342822719,1732155035795,-950.26546194,0.0001,2]
[342822721,1732155035807,-1266.60175907,0.0001,2]
[342822724,1732155038330,-5293.84172478,0.0001,2]
[342822727,1732155038552,-1611919.73313884,0.0001,2]
[342822728,1732155038562,-3900.0,0.0001,3]
[342822729,1732155038572,-660.7507978,0.0001,2]
[342822730,1732155038582,-3000.0,0.0001,2]
[342822731,1732155038597,-1153.87029036,0.0001,2]
[342822732,1732155038607,-400.34879134,0.00010376,2]
[342822733,1732155038617,-401.44,0.00010446,2]
[342822734,1732155038627,-150.0,0.0001066,2]
[342822735,1732155038636,-1000.0,0.00011087,2]
[342822736,1732155038647,-3000.0,0.000111,2]
[342822737,1732155038657,-161.83,0.00011132,2]
[342822738,1732155038666,-161.83,0.00011135,2]
[342822739,1732155038678,-161.83,0.00011138,2]
[342822740,1732155038688,-161.83,0.00011141,2]
[342822741,1732155038699,-161.83,0.00011144,2]
[342822742,1732155038708,-161.83,0.00011147,2]
[342822743,1732155038719,-161.83,0.0001115,2]
[342822744,1732155038728,-161.83,0.00011153,2]
[342822745,1732155038737,-161.83,0.00011156,2]
[342822746,1732155038748,-161.83,0.00011159,2]
[342822747,1732155038758,-161.83,0.00011162,2]
[342822748,1732155038768,-161.83,0.00011165,2]
[342822749,1732155038777,-161.83,0.00011168,2]
[342822750,1732155038786,-161.83,0.00011171,2]
[342822752,1732155038796,-161.83,0.00011173,2]
[342822753,1732155038806,-161.83,0.00011176,2]
[342822754,1732155038816,-161.83,0.00011179,2]
[342822755,1732155038826,-161.83,0.00011182,2]
[342822756,1732155038835,-161.83,0.00011185,2]
[342822757,1732155038850,-161.83,0.00011188,2]
[342822758,1732155038860,-808.68,0.00011573,2]
[342822759,1732155038870,-250.0,0.00011573,2]
[342822760,1732155038879,-23900.0,0.00011573,2]
[342822761,1732155038889,-167.24,0.00012293,2]
[342822762,1732155038899,-1000.0,0.00012319,2]
[342822763,1732155038909,-3000.0,0.0001235,2]
[342822764,1732155038919,-401.44,0.00012672,2]
[342822765,1732155038930,-808.68,0.00013019,2]
[342822766,1732155038940,-1000.0,0.00013551,2]
[342822767,1732155038951,-1000.0,0.00013575,2]
[342822768,1732155038961,-3000.0,0.000136,2]
[342822769,1732155038970,-5029.24163762,0.00014142,2]
[342822770,1732155038980,-5000.0,0.00014142,2]
[342822771,1732155038990,-808.68,0.00014466,2]
[342822772,1732155039003,-1000.0,0.00014783,2]
[342822773,1732155039013,-3000.0,0.0001485,2]
[342822774,1732155039022,-1153.8702903,0.00014877,2]
[342822775,1732155039032,-401.44,0.00014899,2]
[342822776,1732155039042,-660.75079776,0.000149,2]
[342822777,1732155039052,-4221.0,0.00015,2]
[342822778,1732155039063,-1000.0,0.00015272,2]
[342822779,1732155039074,-152.55,0.00015342,2]
[342822780,1732155039084,-194.23,0.00015342,2]
[342822781,1732155039094,-150.93,0.00015342,2]
[342822782,1732155039104,-163.23,0.00015342,2]
[342822783,1732155039114,-808.68,0.00015912,2]
[342822784,1732155039124,-3000.0,0.000161,2]
[342822785,1732155039134,-180.01679222,0.00016438,2]
[342822786,1732155039143,-1000.0,0.00016969,2]
[342822787,1732155039153,-401.44,0.00017125,2]
[342822788,1732155039164,-808.68,0.00017359,2]
[342822789,1732155039176,-150.99,0.00017728,2]
[342822790,1732155039186,-164.64,0.00018168,2]
[342822791,1732155039196,-250.0,0.00018332,2]
[342822792,1732155039205,-1000.0,0.00018666,2]
[342822793,1732155039216,-200.0,0.00018764,2]
[342822794,1732155039226,-150.0,0.00018916,2]
[342822795,1732155039236,-2751.0,0.00019338,2]
[342822796,1732155039246,-401.44,0.00019352,2]
[342822797,1732155039257,-1153.8702903,0.00019854,2]
[342822798,1732155039267,-660.75079776,0.000199,2]
[342822799,1732155039276,-30013.38,0.0002,2]
[342822800,1732155039286,-500.0,0.00020065,2]
[342822801,1732155039296,-1000.0,0.00020362,2]
[342822802,1732155039306,-200.0,0.0002122,2]
[342822803,1732155039316,-401.44,0.00021578,2]
[342822804,1732155039327,-194.23,0.00021745,2]
[342822805,1732155039338,-808.0,0.000218,2]
[342822806,1732155039347,-729.0,0.000218,2]
[342822807,1732155039359,-401.44,0.00023804,2]
[342822808,1732155039369,-1153.8702903,0.00024831,2]
[342822809,1732155039379,-660.75079776,0.000249,2]
[342822810,1732155039389,-401.44,0.00026031,2]
[342822811,1732155039400,-199.94,0.00026481,2]
[342822812,1732155039411,-200.0,0.00028001,2]
[342822813,1732155039423,-194.23,0.00028147,2]
[342822814,1732155039435,-401.44,0.00028257,2]
[342822815,1732155039444,-150.93,0.00028858,2]
[342822816,1732155039456,-1153.8702903,0.00029808,15]
[342822817,1732155039468,-660.75079776,0.000299,15]
[342822818,1732155039477,-1728.0,0.000299,2]
[342822819,1732155039487,-162.17111331,0.0003,2]
[342822820,1732155039496,-3000.0,0.00030137,90]
[342822821,1732155039506,-401.44,0.00030484,2]
[342822822,1732155039516,-250.0,0.00031,2]
[342822823,1732155039527,-282.87471513,0.00031506,120]
[342822824,1732155039537,-401.44,0.0003271,2]
[342822825,1732155039546,-5000.0,0.00032877,120]
[342822826,1732155039555,-3000.0,0.00032877,120]
[342822827,1732155039565,-300.0,0.00033,2]
[342822828,1732155039577,-967.0541986,0.00033681,6]
[342822829,1732155039586,-1029.77931406,0.00034,2]
[342822830,1732155039596,-194.23,0.00034549,2]
[342822831,1732155039605,-550.116,0.00034681,30]
[342822832,1732155039615,-994.36058243,0.00034681,120]
[342822833,1732155039624,-233.38875719,0.00034681,60]
[342822834,1732155039633,-1153.8702903,0.00034786,15]
[342822835,1732155039642,-2204.069,0.0003485,40]
[342822836,1732155039651,-660.75079776,0.000349,15]
[342822837,1732155039661,-401.44,0.00034937,2]
[342822838,1732155039673,-350.0,0.00035,2]
[342822839,1732155039682,-1500.0,0.00035616,120]
[342822840,1732155039692,-400.0,0.00037,2]
[342822841,1732155039701,-401.44,0.00037163,2]
[342822842,1732155039711,-207.79753477,0.000372,103]
[342822843,1732155039721,-450.0,0.00039,2]
[342822844,1732155039730,-401.44,0.0003939,2]
[342822845,1732155039739,-1153.8702903,0.00039763,15]
[342822846,1732155039748,-27744.89355713,0.000398,2]
[342822847,1732155039761,-60813.75913225,0.000398,2]
[342822848,1732155039771,-660.75079776,0.000399,15]
[342822849,1732155039780,-777.69,0.00040675,2]
[342822850,1732155039789,-449.85,0.00040675,2]
[342822851,1732155039798,-764.41,0.00040675,2]
[342822852,1732155039807,-764.41,0.00040675,2]
[342822853,1732155039816,-764.41,0.00040675,2]
[342822854,1732155039825,-764.41,0.00040675,2]
[342822855,1732155039835,-304.78,0.00040812,2]
[342822856,1732155039844,-732.58,0.00040812,2]
[342822857,1732155039854,-654.93,0.00040812,2]
[342822858,1732155039864,-305.62,0.00040812,2]
[342822859,1732155039874,-1138.31,0.00040812,2]
[342822860,1732155039884,-150.0,0.00040878,2]
[342822861,1732155039894,-194.23,0.00040952,2]
[342822862,1732155039904,-2026.0,0.00041,117]
[342822863,1732155039914,-500.0,0.00041,2]
[342822864,1732155039928,-150.0,0.00041024,2]
[342822865,1732155039938,-150.76,0.00041036,2]
[342822866,1732155039947,-480.0,0.000411,2]
[342822867,1732155039957,-150.76,0.00041105,2]
[342822868,1732155039967,-150.76,0.00041173,2]
[342822869,1732155039977,-150.0,0.00041213,2]
[342822870,1732155039987,-150.76,0.00041242,2]
[342822871,1732155039998,-150.0,0.00041271,2]
[342822872,1732155040008,-401.44,0.00041616,2]
[342822873,1732155040018,-1096.0,0.000418,7]
[342822874,1732155040027,-150.0,0.00041831,2]
[342822875,1732155040036,-150.0,0.00041872,2]
[342822876,1732155040046,-150.0,0.00041924,2]
[342822877,1732155040055,-150.0,0.00041978,2]
[342822878,1732155040065,-150.0,0.00041994,2]
[342822879,1732155040076,-150.0,0.00041997,2]
[342822880,1732155040086,-150.0,0.00042027,2]
[342822881,1732155040095,-150.0,0.00042049,2]
[342822882,1732155040105,-150.0,0.00042078,2]
[342822883,1732155040114,-150.0,0.0004208,2]
[342822884,1732155040123,-150.0,0.00042097,2]
[342822885,1732155040132,-150.0,0.00042098,2]
[342822886,1732155040142,-150.0,0.00042103,2]
[342822887,1732155040151,-1500.0,0.00042148,7]
[342822888,1732155040161,-150.0,0.00042168,2]
[342822889,1732155040176,-150.0,0.00042185,2]
[342822890,1732155040185,-150.0,0.00042227,2]
[342822891,1732155040195,-150.0,0.00042234,2]
[342822892,1732155040205,-150.0,0.00042234,2]
[342822893,1732155040217,-150.0,0.00042234,2]
[342822894,1732155040227,-150.0,0.00042238,2]
[342822895,1732155040236,-150.0,0.00042251,2]
[342822896,1732155040245,-150.0,0.00042275,2]
[342822897,1732155040254,-150.0,0.00042275,2]
[342822898,1732155040264,-150.0,0.00042297,2]
[342822899,1732155040273,-150.0,0.0004231,2]
[342822900,1732155040283,-1500.0,0.00042321,7]
[342822901,1732155040293,-150.0,0.00042334,2]
[342822903,1732155040302,-150.0,0.00042342,2]
[342822905,1732155040311,-150.0,0.00042351,2]
[342822906,1732155040321,-150.0,0.00042366,2]
[342822907,1732155040331,-150.93,0.00042374,2]
[342822908,1732155040340,-150.0,0.0004238,2]
[342822909,1732155040349,-297.96783564,0.00042382,7]
[342822910,1732155040358,-150.0,0.00042383,2]
[342822911,1732155040367,-150.0,0.00042385,2]
[342822912,1732155040376,-1500.0,0.00042422,7]
[342822913,1732155040385,-150.0,0.00042426,2]
[342822914,1732155040394,-150.0,0.00042476,7]
[342822915,1732155040403,-150.0,0.00042478,2]
[342822916,1732155040412,-150.0,0.00042479,7]
[342822917,1732155040424,-150.0,0.00042483,7]
[342822918,1732155040433,-150.0,0.00042491,7]
[342822919,1732155040442,-500.0,0.00042493,7]
[342822920,1732155040451,-500.0,0.00042493,7]
[342822921,1732155040460,-500.0,0.00042493,7]
[342822923,1732155040721,-500.0,0.00042493,7]
[342822925,1732155040748,-500.0,0.00042493,7]
[342822927,1732155040757,-500.0,0.00042493,7]
[342822929,1732155040766,-500.0,0.00042493,7]
[342822931,1732155040775,-500.0,0.00042493,7]
[342822933,1732155040784,-500.0,0.00042493,7]
[342822935,1732155040793,-500.0,0.00042493,7]
[342822937,1732155040802,-371.76,0.00042493,7]
[342822939,1732155040811,-500.0,0.00042493,7]
[342822941,1732155040820,-500.0,0.00042493,7]
[342822943,1732155040829,-500.0,0.00042493,7]
[342822945,1732155040838,-500.0,0.00042493,7]
[342822947,1732155040847,-500.0,0.00042493,7]
[342822949,1732155040856,-500.0,0.00042493,7]
[342822950,1732155040865,-500.0,0.00042493,7]
[342822952,1732155040875,-500.0,0.00042493,7]
[342822954,1732155040884,-500.0,0.00042493,7]
[342822956,1732155040893,-500.0,0.00042493,7]
[342822959,1732155040903,-500.0,0.00042493,7]
[342822960,1732155040912,-500.0,0.00042493,7]
[342822963,1732155040924,-500.0,0.00042493,7]
[342822964,1732155040933,-304.54,0.00042493,7]
[342822966,1732155040943,-1000.0,0.000425,2]
[342822968,1732155040952,-150.0,0.00042517,7]
[342822970,1732155040962,-150.0,0.00042518,7]
[342822973,1732155040971,-150.0,0.0004252,7]
[342822974,1732155040980,-150.0,0.0004253,2]
[342822976,1732155040990,-150.0,0.00042541,2]
[342822979,1732155041003,-1500.0,0.00042548,7]
[342822981,1732155041013,-150.0,0.00042551,2]
[342822983,1732155041022,-150.0,0.00042552,2]
[342822985,1732155041033,-150.0,0.00042554,2]
[342822987,1732155041043,-150.0,0.00042556,7]
[342822989,1732155041052,-150.0,0.00042584,7]
[342822991,1732155041062,-150.0,0.00042587,2]
[342822992,1732155041071,-150.0,0.00042604,2]
[342822995,1732155041082,-150.0,0.00042605,7]
[342822996,1732155041092,-152.24806385,0.00042613,7]
[342822999,1732155041101,-150.0,0.00042617,7]
[342823000,1732155041110,-150.0,0.00042628,2]
[342823003,1732155041120,-150.0,0.00042631,2]
[342823005,1732155041129,-1500.0,0.00042631,7]
[342823007,1732155041139,-150.0,0.00042639,2]
[342823008,1732155041148,-150.0,0.0004264,2]
[342823010,1732155041158,-150.0,0.00042641,2]
[342823013,1732155041167,-160.22674808,0.00042665,10]
[342823015,1732155041182,-150.0,0.00042671,7]
[342823017,1732155041191,-150.0,0.00042672,7]
[342823018,1732155041207,-150.0,0.00042688,7]
[342823021,1732155041216,-150.0,0.00042698,2]
[342823023,1732155041227,-1476.0,0.000427,120]
[342823025,1732155041237,-150.0,0.00042711,2]
[342823027,1732155041246,-150.0,0.00042721,2]
[342823029,1732155041255,-150.0,0.00042726,7]
[342823031,1732155041265,-150.0,0.00042728,2]
[342823033,1732155041274,-1500.0,0.00042733,7]
[342823035,1732155041283,-150.0,0.00042735,2]
[342823037,1732155041293,-150.0,0.00042764,2]
[342823038,1732155041302,-150.0,0.00042769,7]
[342823041,1732155041311,-150.0,0.00042783,2]
[342823043,1732155041320,-150.0,0.00042785,2]
[342823044,1732155041330,-150.0,0.00042788,2]
[342823046,1732155041339,-150.0,0.00042793,2]
[342823048,1732155041348,-164.329807,0.000428,30]
[342823051,1732155041358,-150.0,0.00042805,2]
[342823052,1732155041367,-1500.0,0.00042805,7]
[342823055,1732155041376,-1500.0,0.00042806,7]
[342823056,1732155041386,-150.0,0.00042807,2]
[342823058,1732155041395,-150.0,0.00042821,2]
[342823060,1732155041404,-150.0,0.00042831,7]
[342823063,1732155041414,-150.0,0.00042833,2]
[342823064,1732155041429,-150.0,0.00042836,2]
[342823066,1732155041439,-150.0,0.0004285,2]
[342823068,1732155041448,-150.0,0.00042851,2]
[342823070,1732155041457,-150.0,0.00042857,7]
[342823072,1732155041466,-150.0,0.00042862,7]
[342823074,1732155041475,-1500.0,0.00042877,7]
[342823076,1732155041484,-150.0,0.00042899,2]
[342823078,1732155041494,-150.0,0.00042908,2]
[342823080,1732155041503,-150.0,0.00042931,2]
[342823082,1732155041512,-1500.0,0.00042933,7]
[342823084,1732155041521,-1500.0,0.00042942,7]
[342823086,1732155041530,-150.0,0.00042945,7]
[342823088,1732155041540,-150.0,0.00042953,2]
[342823090,1732155041549,-150.0,0.00042966,2]
[342823092,1732155041558,-150.0,0.00042969,2]
[342823094,1732155041567,-150.0,0.00042973,7]
[342823096,1732155041576,-150.0,0.00042976,2]
[342823098,1732155041585,-540.46623105,0.00043,30]
[342823100,1732155041595,-550.0,0.00043,2]
[342823102,1732155041604,-150.0,0.00043009,2]
[342823104,1732155041613,-150.0,0.0004303,2]
[342823106,1732155041622,-150.0,0.00043031,7]
[342823108,1732155041631,-150.0,0.00043035,7]
[342823110,1732155041640,-150.0,0.00043038,7]
[342823112,1732155041649,-150.0,0.00043048,7]
[342823114,1732155041658,-150.0,0.00043054,7]
[342823116,1732155041667,-150.0,0.00043062,7]
[342823118,1732155041682,-1500.0,0.00043064,7]
[342823120,1732155041691,-150.0,0.00043067,2]
[342823122,1732155041700,-150.0,0.00043069,2]
[342823124,1732155041709,-150.0,0.00043069,2]
[342823126,1732155041719,-150.0,0.00043108,2]
[342823127,1732155041728,-189.92132454,0.00043108,7]
[342823128,1732155041737,-150.0,0.00043114,2]
[342823129,1732155041746,-271.70915748,0.0004312,2]
[342823130,1732155041755,-1500.0,0.00043126,7]
[342823131,1732155041765,-150.0,0.00043128,7]
[342823132,1732155041774,-150.0,0.00043137,7]
[342823133,1732155041783,-150.0,0.00043139,7]
[342823134,1732155041792,-150.0,0.00043142,7]
[342823135,1732155041802,-150.0,0.00043142,2]
[342823136,1732155041811,-150.0,0.00043158,2]
[342823137,1732155041822,-1500.0,0.00043162,7]
[342823138,1732155041833,-150.0,0.00043167,2]
[342823139,1732155041843,-150.0,0.00043185,2]
[342823140,1732155041853,-150.0,0.00043203,2]
[342823141,1732155041864,-150.0,0.00043207,2]
[342823142,1732155041873,-1500.0,0.00043212,7]
[342823143,1732155041882,-150.0,0.00043214,2]
[342823144,1732155041891,-150.0,0.00043214,7]
[342823145,1732155041900,-150.0,0.00043219,2]
[342823146,1732155041910,-150.0,0.0004323,2]
[342823147,1732155041920,-150.0,0.00043251,2]
[342823148,1732155041932,-150.0,0.00043251,2]
[342823149,1732155041941,-150.0,0.00043278,2]
[342823150,1732155041951,-1500.0,0.00043291,7]
[342823151,1732155041960,-150.0,0.00043295,2]
[342823152,1732155041970,-150.0,0.00043301,2]
[342823153,1732155041979,-150.0,0.00043318,2]
[342823154,1732155041989,-150.0,0.0004332,2]
[342823155,1732155042002,-150.0,0.00043324,2]
[342823156,1732155042012,-2765.0,0.0004334,52]
[342823157,1732155042022,-150.0,0.0004334,2]
[342823158,1732155042031,-1524.61552708,0.0004334,7]
[342823159,1732155042041,-150.0,0.00043352,7]
[342823160,1732155042050,-150.0,0.00043357,2]
[342823161,1732155042061,-150.0,0.00043362,7]
[342823162,1732155042075,-150.0,0.00043368,7]
[342823163,1732155042090,-150.0,0.00043375,2]
[342823164,1732155042100,-150.0,0.00043386,2]
[342823165,1732155042110,-150.0,0.00043399,2]
[342823166,1732155042120,-950.63499922,0.00043463,7]
[342823167,1732155042130,-150.0,0.00043472,2]
[342823168,1732155042139,-150.0,0.00043485,2]
[342823169,1732155042150,-150.0,0.00043491,2]
[342823170,1732155042159,-150.0,0.00043491,7]
[342823171,1732155042169,-179.0863378,0.00043492,2]
[342823172,1732155042183,-2500.0,0.000435,120]
[342823173,1732155042192,-150.0,0.00043504,2]
[342823174,1732155042203,-150.0,0.00043566,2]
[342823175,1732155042213,-150.0,0.00043611,2]
[342823176,1732155042223,-150.0,0.00043646,2]
[342823177,1732155042232,-11402.27833654,0.000437,120]
[342823178,1732155042242,-254.7126696,0.0004371,2]
[342823179,1732155042251,-3023.6847175,0.0004371,2]
[342823180,1732155042260,-741.20200932,0.0004371,2]
[342823181,1732155042270,-4196.5616704,0.0004371,2]
[342823182,1732155042279,-1997.4530612,0.0004371,2]
[342823183,1732155042288,-303.2332429,0.0004374,2]
[342823184,1732155042297,-1277.9482679,0.0004374,2]
[342823185,1732155042306,-254.6918465,0.0004377,2]
[342823186,1732155042316,-979.32495798,0.000438,120]
[342823187,1732155042326,-7312.72,0.00043835,120]
[342823188,1732155042335,-401.44,0.00043843,2]
[342823189,1732155042346,-10000.0,0.000439,120]
[342823190,1732155042355,-3575.0,0.00044,120]
[342823191,1732155042366,-7312.72,0.00044246,120]
[342823192,1732155042374,-7312.72,0.00044657,120]
[342823193,1732155042383,-660.75079776,0.000449,15]
[342823194,1732155042393,-800.0,0.00045,120]
[342823195,1732155042402,-17728.343801,0.00045,30]
[342823196,1732155042411,-1782.23,0.00045,120]
[342823197,1732155042419,-358.17879522,0.00045,2]
[342823198,1732155042437,-241.82120478,0.00045,2]
[342823199,1732155042446,-175.96,0.00045,85]
[342823200,1732155042454,-3184.72757615,0.00045068,120]
[342823201,1732155042465,-1680.61684193,0.00045068,120]
[342823202,1732155042476,-448.82579242,0.00045068,120]
[342823206,1732155043170,-400.34879134,0.00010468,2]
[342823207,1732155043182,-400.34879134,0.00010793,2]
[342823208,1732155043191,-150.0,0.00041174,2]
[342823209,1732155043201,-150.0,0.00041177,2]